[Event "Early-Titled-Tuesday-Blitz-February-13-2024"]
[Site "Chess.com"]
[Date "2024.02.13"]
[Round "2"]
[White "djano"]
[Black "BilodeauA"]
[Result "1/2-1/2"]
[WhiteElo "2653"]
[BlackElo "2958"]
[TimeControl "180+1"]
[EndTime "8:20:45 PST"]
[Termination "Game drawn by repetition"]

1. e4 {[%clk 0:03:00.9]} 1... e5 {[%clk 0:02:59.6]} 2. Bc4 {[%clk 0:03:01]} 2...
Nc6 {[%clk 0:02:57.6]} 3. d3 {[%clk 0:03:00]} 3... Nf6 {[%clk 0:02:56.2]} 4. Nc3
{[%clk 0:02:57.7]} 4... Bb4 {[%clk 0:02:54]} 5. Nf3 {[%clk 0:02:42]} 5... d5
{[%clk 0:02:48.5]} 6. exd5 {[%clk 0:02:41.6]} 6... Nxd5 {[%clk 0:02:48.3]} 7.
Bd2 {[%clk 0:02:42.2]} 7... Nxc3 {[%clk 0:02:20]} 8. bxc3 {[%clk 0:02:43.1]}
8... Bd6 {[%clk 0:02:19.3]} 9. Ng5 {[%clk 0:02:38.9]} 9... Be6 {[%clk
0:01:58.2]} 10. Bxe6 {[%clk 0:02:32.6]} 10... fxe6 {[%clk 0:01:58.1]} 11. Qh5+
{[%clk 0:02:32.8]} 11... g6 {[%clk 0:01:56]} 12. Qg4 {[%clk 0:02:33.3]} 12...
Qe7 {[%clk 0:01:50.9]} 13. Nxe6 {[%clk 0:02:21.4]} 13... Qd7 {[%clk 0:01:34.4]}
14. h3 {[%clk 0:02:13.7]} 14... Ke7 {[%clk 0:01:14.2]} 15. Ng5 {[%clk
0:01:54.6]} 15... Qf5 {[%clk 0:01:13.3]} 16. Ne4 {[%clk 0:01:51.6]} 16... Raf8
{[%clk 0:01:13.1]} 17. Bh6 {[%clk 0:01:45.9]} 17... Rf7 {[%clk 0:01:09.8]} 18.
Bg5+ {[%clk 0:01:39.3]} 18... Kd7 {[%clk 0:01:07.2]} 19. Ng3 {[%clk 0:01:31.1]}
19... Qe6 {[%clk 0:01:03.9]} 20. Rb1 {[%clk 0:01:21.3]} 20... b6 {[%clk
0:01:02.5]} 21. Qxe6+ {[%clk 0:01:16.5]} 21... Kxe6 {[%clk 0:01:01.9]} 22. Bh6
{[%clk 0:01:10.9]} 22... Bf8 {[%clk 0:00:55]} 23. Bxf8 {[%clk 0:01:09.1]} 23...
Rhxf8 {[%clk 0:00:54.6]} 24. Ne4 {[%clk 0:01:10]} 24... Kd7 {[%clk 0:00:53.8]}
25. f3 {[%clk 0:01:08.4]} 25... Ne7 {[%clk 0:00:53.5]} 26. c4 {[%clk 0:00:59.5]}
26... c5 {[%clk 0:00:53.4]} 27. a4 {[%clk 0:00:58.6]} 27... Nc6 {[%clk
0:00:53.4]} 28. Kd2 {[%clk 0:00:58.3]} 28... Kc7 {[%clk 0:00:53.1]} 29. Ng5
{[%clk 0:00:55.9]} 29... Re7 {[%clk 0:00:52.8]} 30. h4 {[%clk 0:00:53.8]} 30...
h6 {[%clk 0:00:49.6]} 31. Ne4 {[%clk 0:00:53]} 31... Nd4 {[%clk 0:00:48.5]} 32.
Rh3 {[%clk 0:00:52]} 32... Nf5 {[%clk 0:00:47.7]} 33. Nc3 {[%clk 0:00:47.2]}
33... Ref7 {[%clk 0:00:47]} 34. a5 {[%clk 0:00:46.1]} 34... Kc6 {[%clk
0:00:45.3]} 35. a6 {[%clk 0:00:44.8]} 35... Rd8 {[%clk 0:00:37.5]} 36. Rhh1
{[%clk 0:00:43.6]} 36... Nd6 {[%clk 0:00:37.4]} 37. Ke2 {[%clk 0:00:40.6]} 37...
Nf5 {[%clk 0:00:37.4]} 38. Kf2 {[%clk 0:00:39.6]} 38... Rd4 {[%clk 0:00:37.2]}
39. h5 {[%clk 0:00:38.4]} 39... g5 {[%clk 0:00:36.9]} 40. Nb5 {[%clk 0:00:39]}
40... Rf4 {[%clk 0:00:26.9]} 41. Rbe1 {[%clk 0:00:36]} 41... g4 {[%clk
0:00:23.1]} 42. Rxe5 {[%clk 0:00:26.5]} 42... gxf3 {[%clk 0:00:22.9]} 43. gxf3
{[%clk 0:00:27.1]} 43... Ng7 {[%clk 0:00:18]} 44. Rh3 {[%clk 0:00:24.4]} 44...
R4f6 {[%clk 0:00:18.5]} 45. Rg3 {[%clk 0:00:20.5]} 45... Ne6 {[%clk 0:00:18.1]}
46. Kg2 {[%clk 0:00:17.6]} 46... Ng5 {[%clk 0:00:17.2]} 47. Re3 {[%clk
0:00:13.7]} 47... Rf4 {[%clk 0:00:17.3]} 48. c3 {[%clk 0:00:12]} 48... R4f6
{[%clk 0:00:16.4]} 49. d4 {[%clk 0:00:12.3]} 49... cxd4 {[%clk 0:00:17.1]} 50.
cxd4 {[%clk 0:00:12.9]} 50... Rf4 {[%clk 0:00:17.2]} 51. Rd3 {[%clk 0:00:08.1]}
51... Re7 {[%clk 0:00:16.1]} 52. Kf2 {[%clk 0:00:07.7]} 52... Ne4+ {[%clk
0:00:16.3]} 53. Ke3 {[%clk 0:00:07.2]} 53... Nxg3+ {[%clk 0:00:15.9]} 54. Kxf4
{[%clk 0:00:07.8]} 54... Nxh5+ {[%clk 0:00:15.9]} 55. Kf5 {[%clk 0:00:07.4]}
55... Rg7 {[%clk 0:00:09.4]} 56. Rd1 {[%clk 0:00:06.9]} 56... Rg5+ {[%clk
0:00:09.3]} 57. Ke6 {[%clk 0:00:06.3]} 57... Nf4+ {[%clk 0:00:09.8]} 58. Ke7
{[%clk 0:00:06.6]} 58... Rg7+ {[%clk 0:00:10.1]} 59. Kf6 {[%clk 0:00:06.5]}
59... Nh5+ {[%clk 0:00:10.3]} 60. Kf5 {[%clk 0:00:06.4]} 60... Rg5+ {[%clk
0:00:10.7]} 61. Ke4 {[%clk 0:00:06.2]} 61... Nf6+ {[%clk 0:00:11]} 62. Kf4
{[%clk 0:00:05.7]} 62... Nh5+ {[%clk 0:00:09.7]} 63. Ke4 {[%clk 0:00:06]} 63...
Nf6+ {[%clk 0:00:09.9]} 64. Kf4 {[%clk 0:00:06.4]} 64... Nh5+ {[%clk 0:00:09.7]}
65. Ke4 {[%clk 0:00:06.5]} 1/2-1/2

[Event "Early-Titled-Tuesday-Blitz-February-13-2024"]
[Site "Chess.com"]
[Date "2024.02.13"]
[Round "2"]
[White "arnash_bauyrzhan"]
[Black "DamianoLew95"]
[Result "0-1"]
[WhiteElo "2281"]
[BlackElo "2723"]
[TimeControl "180+1"]
[EndTime "8:20:46 PST"]
[Termination "DamianoLew95 won on time"]

1. e4 {[%clk 0:03:00.9]} 1... c5 {[%clk 0:03:00.3]} 2. Nf3 {[%clk 0:03:00.6]}
2... d6 {[%clk 0:03:00.7]} 3. Bb5+ {[%clk 0:03:00]} 3... Nd7 {[%clk 0:02:57.9]}
4. d4 {[%clk 0:02:58.9]} 4... cxd4 {[%clk 0:02:58]} 5. Qxd4 {[%clk 0:02:58.5]}
5... Nf6 {[%clk 0:02:58.3]} 6. Bg5 {[%clk 0:02:56.9]} 6... a6 {[%clk 0:02:58.1]}
7. Bxd7+ {[%clk 0:02:55.1]} 7... Bxd7 {[%clk 0:02:59]} 8. O-O {[%clk 0:02:53.1]}
8... Rc8 {[%clk 0:02:54.4]} 9. c4 {[%clk 0:02:51.8]} 9... e5 {[%clk 0:02:50.9]}
10. Qd3 {[%clk 0:02:45.7]} 10... Be6 {[%clk 0:02:48]} 11. Na3 {[%clk 0:02:35.6]}
11... h6 {[%clk 0:02:42.3]} 12. Bxf6 {[%clk 0:02:32.4]} 12... Qxf6 {[%clk
0:02:42.3]} 13. Rac1 {[%clk 0:02:22.2]} 13... Be7 {[%clk 0:02:40.4]} 14. b3
{[%clk 0:02:16.1]} 14... O-O {[%clk 0:02:30.8]} 15. Nc2 {[%clk 0:02:15.9]} 15...
Bg4 {[%clk 0:02:15.9]} 16. h3 {[%clk 0:02:02.2]} 16... Bxf3 {[%clk 0:02:15.2]}
17. Qxf3 {[%clk 0:02:01.8]} 17... Qxf3 {[%clk 0:02:15.4]} 18. gxf3 {[%clk
0:02:02.3]} 18... f5 {[%clk 0:02:14.6]} 19. Ne3 {[%clk 0:02:01.3]} 19... Bg5
{[%clk 0:02:13.7]} 20. Rcd1 {[%clk 0:02:00]} 20... Bxe3 {[%clk 0:02:12.5]} 21.
fxe3 {[%clk 0:02:00.2]} 21... fxe4 {[%clk 0:02:07.4]} 22. Rxd6 {[%clk
0:01:54.3]} 22... exf3 {[%clk 0:02:05.6]} 23. Re6 {[%clk 0:01:48.5]} 23... Rc5
{[%clk 0:01:57.6]} 24. Kf2 {[%clk 0:01:38.6]} 24... b5 {[%clk 0:01:52.2]} 25.
Rc1 {[%clk 0:01:03.8]} 25... bxc4 {[%clk 0:01:38.2]} 26. Rxc4 {[%clk 0:01:00.5]}
26... Rd5 {[%clk 0:01:37.8]} 27. Rc2 {[%clk 0:00:52.4]} 27... a5 {[%clk
0:01:38]} 28. Re7 {[%clk 0:00:51.2]} 28... Kh8 {[%clk 0:01:32.9]} 29. e4 {[%clk
0:00:34.1]} 29... Rd1 {[%clk 0:01:18.9]} 30. Rxe5 {[%clk 0:00:32.6]} 30... Rh1
{[%clk 0:01:19.2]} 31. Kg3 {[%clk 0:00:27.2]} 31... Rg1+ {[%clk 0:01:18.1]} 32.
Kh2 {[%clk 0:00:10.9]} 32... Re1 {[%clk 0:01:14.5]} 33. Rf2 {[%clk 0:00:09.2]}
33... Kh7 {[%clk 0:00:56.5]} 34. Rxa5 {[%clk 0:00:08.3]} 34... Rxe4 {[%clk
0:00:55.6]} 35. Ra7 {[%clk 0:00:07.3]} 35... Re3 {[%clk 0:00:50.9]} 36. Kg3
{[%clk 0:00:07.5]} 36... Rf6 {[%clk 0:00:49.8]} 37. b4 {[%clk 0:00:06.5]} 37...
h5 {[%clk 0:00:42.5]} 38. h4 {[%clk 0:00:06.3]} 38... Re4 {[%clk 0:00:36.5]} 39.
b5 {[%clk 0:00:06.2]} 39... Rg4+ {[%clk 0:00:36]} 40. Kh3 {[%clk 0:00:06.5]}
40... Rff4 {[%clk 0:00:34.6]} 41. Ra3 {[%clk 0:00:02.8]} 41... Rxh4+ {[%clk
0:00:33.1]} 42. Kg3 {[%clk 0:00:03.2]} 42... Rhg4+ {[%clk 0:00:33.2]} 43. Kh3
{[%clk 0:00:03.4]} 43... Rb4 {[%clk 0:00:28.6]} 44. Raxf3 {[%clk 0:00:02.8]}
44... Rxb5 {[%clk 0:00:28.5]} 45. Rf5 {[%clk 0:00:03]} 45... Rxf5 {[%clk
0:00:26.1]} 46. Rxf5 {[%clk 0:00:03.9]} 46... g6 {[%clk 0:00:26]} 47. Rf7+
{[%clk 0:00:03.9]} 47... Kh6 {[%clk 0:00:26.1]} 48. Ra7 {[%clk 0:00:03.1]} 48...
Rc4 {[%clk 0:00:23.5]} 49. a4 {[%clk 0:00:03.4]} 49... Rc3+ {[%clk 0:00:23.7]}
50. Kg2 {[%clk 0:00:03]} 50... Kg5 {[%clk 0:00:23.8]} 51. a5 {[%clk 0:00:03.4]}
51... Kg4 {[%clk 0:00:23.2]} 52. a6 {[%clk 0:00:03.8]} 52... Rc2+ {[%clk
0:00:23.1]} 53. Kf1 {[%clk 0:00:04.4]} 53... g5 {[%clk 0:00:22.6]} 54. Ra8
{[%clk 0:00:04.1]} 54... Ra2 {[%clk 0:00:22.8]} 55. a7 {[%clk 0:00:02.7]} 55...
h4 {[%clk 0:00:22.4]} 56. Kg1 {[%clk 0:00:01.3]} 56... Kg3 {[%clk 0:00:20.3]}
57. Kf1 {[%clk 0:00:01.9]} 57... g4 {[%clk 0:00:19.6]} 0-1

[Event "Early-Titled-Tuesday-Blitz-February-13-2024"]
[Site "Chess.com"]
[Date "2024.02.13"]
[Round "2"]
[White "tantaan"]
[Black "Alblooshi_Hamad"]
[Result "1-0"]
[WhiteElo "2499"]
[BlackElo "2218"]
[TimeControl "180+1"]
[EndTime "8:20:46 PST"]
[Termination "tantaan won by resignation"]

1. e4 {[%clk 0:03:00.9]} 1... c5 {[%clk 0:02:58.9]} 2. Nc3 {[%clk 0:03:00.6]}
2... Nc6 {[%clk 0:02:58.6]} 3. Bb5 {[%clk 0:02:59.9]} 3... e6 {[%clk 0:02:57.7]}
4. Bxc6 {[%clk 0:02:59.8]} 4... bxc6 {[%clk 0:02:57.6]} 5. d3 {[%clk 0:02:59.9]}
5... d5 {[%clk 0:02:57.5]} 6. f4 {[%clk 0:03:00.1]} 6... g6 {[%clk 0:02:53]} 7.
Nf3 {[%clk 0:02:59.8]} 7... Bg7 {[%clk 0:02:53.4]} 8. O-O {[%clk 0:02:59.6]}
8... Nf6 {[%clk 0:02:51.7]} 9. Qe1 {[%clk 0:02:57]} 9... O-O {[%clk 0:02:51.4]}
10. Bd2 {[%clk 0:02:32.1]} 10... Rb8 {[%clk 0:02:51.5]} 11. b3 {[%clk
0:02:30.9]} 11... Re8 {[%clk 0:02:33.7]} 12. Rd1 {[%clk 0:02:30.2]} 12... Bd7
{[%clk 0:02:29]} 13. Qh4 {[%clk 0:02:15]} 13... h6 {[%clk 0:01:46.4]} 14. e5
{[%clk 0:02:10.9]} 14... Nh7 {[%clk 0:01:45.9]} 15. Qf2 {[%clk 0:02:08.1]} 15...
Qe7 {[%clk 0:01:41.3]} 16. Na4 {[%clk 0:02:05.4]} 16... d4 {[%clk 0:01:40.4]}
17. Nb2 {[%clk 0:02:01.8]} 17... Bc8 {[%clk 0:01:31]} 18. Nc4 {[%clk 0:02:00.5]}
18... Ba6 {[%clk 0:01:28.2]} 19. Nd6 {[%clk 0:01:58]} 19... Red8 {[%clk
0:01:28.1]} 20. Ba5 {[%clk 0:01:37.8]} 20... Rd7 {[%clk 0:01:25.7]} 21. Nd2
{[%clk 0:01:35.9]} 21... Rxd6 {[%clk 0:01:11.1]} 22. exd6 {[%clk 0:01:35]} 22...
Qxd6 {[%clk 0:01:12]} 23. Ne4 {[%clk 0:01:34.6]} 23... Qe7 {[%clk 0:01:12.4]}
24. Rde1 {[%clk 0:01:23.6]} 24... Nf6 {[%clk 0:01:12.3]} 25. Bd2 {[%clk
0:01:13.6]} 25... Nd5 {[%clk 0:01:10.7]} 26. g4 {[%clk 0:01:07.6]} 26... Nb4
{[%clk 0:00:55.2]} 27. Bxb4 {[%clk 0:00:50.3]} 27... cxb4 {[%clk 0:00:55.4]} 28.
f5 {[%clk 0:00:50.9]} 28... Bh8 {[%clk 0:00:21.6]} 29. fxg6 {[%clk 0:00:36.7]}
29... fxg6 {[%clk 0:00:18.8]} 30. Qg3 {[%clk 0:00:32]} 30... Rf8 {[%clk
0:00:17.7]} 31. g5 {[%clk 0:00:31.8]} 31... h5 {[%clk 0:00:16.8]} 32. Nf6+
{[%clk 0:00:28.6]} 32... Bxf6 {[%clk 0:00:16.5]} 33. gxf6 {[%clk 0:00:28.2]}
33... Qf7 {[%clk 0:00:16.2]} 34. Qe5 {[%clk 0:00:22.8]} 34... Re8 {[%clk
0:00:15.8]} 35. Qxd4 {[%clk 0:00:22.7]} 35... Rb8 {[%clk 0:00:02.8]} 36. Qe5
{[%clk 0:00:20.6]} 36... Re8 {[%clk 0:00:01.5]} 37. Rf2 {[%clk 0:00:20.7]} 37...
Bb5 {[%clk 0:00:01.9]} 38. Rfe2 {[%clk 0:00:20.8]} 38... a5 {[%clk 0:00:01.7]}
39. Qd6 {[%clk 0:00:21.1]} 39... Ba6 {[%clk 0:00:01.9]} 40. Rxe6 {[%clk
0:00:21.3]} 40... Rxe6 {[%clk 0:00:02.4]} 41. Qxe6 {[%clk 0:00:21.8]} 41... Qxe6
{[%clk 0:00:03]} 42. Rxe6 {[%clk 0:00:22.7]} 42... Bb5 {[%clk 0:00:03.6]} 43.
Rd6 {[%clk 0:00:22.9]} 43... Kf7 {[%clk 0:00:04]} 44. Kf2 {[%clk 0:00:23.4]}
44... a4 {[%clk 0:00:03.8]} 45. Ke3 {[%clk 0:00:23.7]} 45... axb3 {[%clk
0:00:04.3]} 46. axb3 {[%clk 0:00:24.6]} 46... g5 {[%clk 0:00:04.9]} 47. Kd4
{[%clk 0:00:24.9]} 47... g4 {[%clk 0:00:05.5]} 48. Kc5 {[%clk 0:00:25.1]} 48...
h4 {[%clk 0:00:05.9]} 49. Rd4 {[%clk 0:00:25.5]} 49... g3 {[%clk 0:00:05.7]} 50.
hxg3 {[%clk 0:00:25.9]} 50... hxg3 {[%clk 0:00:06.6]} 51. Rg4 {[%clk 0:00:26.6]}
51... Kxf6 {[%clk 0:00:07]} 52. Rxg3 {[%clk 0:00:27.1]} 52... Ke5 {[%clk
0:00:07.6]} 53. Kxb4 {[%clk 0:00:27.2]} 53... Kd4 {[%clk 0:00:07.4]} 54. c3+
{[%clk 0:00:26.5]} 54... Ke5 {[%clk 0:00:06.7]} 55. Kc5 {[%clk 0:00:26.6]} 55...
Kf4 {[%clk 0:00:07]} 56. Rh3 {[%clk 0:00:26.7]} 56... Kg4 {[%clk 0:00:07.4]} 57.
c4 {[%clk 0:00:25.2]} 57... Kxh3 {[%clk 0:00:04.2]} 58. cxb5 {[%clk 0:00:25.1]}
58... cxb5 {[%clk 0:00:05.1]} 59. Kxb5 {[%clk 0:00:25.6]} 59... Kg4 {[%clk
0:00:06]} 60. d4 {[%clk 0:00:26.3]} 60... Kf5 {[%clk 0:00:06.9]} 61. d5 {[%clk
0:00:26.7]} 61... Ke5 {[%clk 0:00:07.2]} 62. Kc6 {[%clk 0:00:27.2]} 1-0

[Event "Early-Titled-Tuesday-Blitz-February-13-2024"]
[Site "Chess.com"]
[Date "2024.02.13"]
[Round "2"]
[White "OrtizAnahi2001"]
[Black "TrahtarBelarus"]
[Result "0-1"]
[WhiteElo "2601"]
[BlackElo "2874"]
[TimeControl "180+1"]
[EndTime "8:20:47 PST"]
[Termination "TrahtarBelarus won by resignation"]

1. d4 {[%clk 0:03:00.9]} 1... Nf6 {[%clk 0:02:53.9]} 2. c4 {[%clk 0:03:00.8]}
2... g6 {[%clk 0:02:52.3]} 3. Nc3 {[%clk 0:03:00.1]} 3... d5 {[%clk 0:02:52.8]}
4. cxd5 {[%clk 0:02:59.4]} 4... Nxd5 {[%clk 0:02:53.7]} 5. e4 {[%clk 0:02:57.4]}
5... Nxc3 {[%clk 0:02:52.9]} 6. bxc3 {[%clk 0:02:58.3]} 6... Bg7 {[%clk
0:02:53.4]} 7. Nf3 {[%clk 0:02:58.8]} 7... c5 {[%clk 0:02:54.1]} 8. Be3 {[%clk
0:02:57.4]} 8... Qa5 {[%clk 0:02:53.2]} 9. Bd2 {[%clk 0:02:55.3]} 9... O-O
{[%clk 0:02:51.2]} 10. Be2 {[%clk 0:02:54]} 10... Bg4 {[%clk 0:02:48.3]} 11. O-O
{[%clk 0:02:52.8]} 11... cxd4 {[%clk 0:02:21.2]} 12. cxd4 {[%clk 0:02:49.3]}
12... Qa3 {[%clk 0:02:21.8]} 13. Rb1 {[%clk 0:02:33.4]} 13... Bxf3 {[%clk
0:01:47.1]} 14. Bxf3 {[%clk 0:02:32.2]} 14... Nc6 {[%clk 0:01:47.8]} 15. d5
{[%clk 0:02:12.8]} 15... Nd4 {[%clk 0:01:48]} 16. Bb4 {[%clk 0:02:12.8]} 16...
Nxf3+ {[%clk 0:01:33.6]} 17. gxf3 {[%clk 0:02:12]} 17... Qxa2 {[%clk 0:01:32.8]}
18. Bxe7 {[%clk 0:02:11.6]} 18... Rfe8 {[%clk 0:01:31.9]} 19. Rxb7 {[%clk
0:02:10.8]} 19... Qa6 {[%clk 0:01:06.1]} 20. Qb3 {[%clk 0:02:03.8]} 20... Be5
{[%clk 0:01:05.4]} 21. Rd1 {[%clk 0:01:54.1]} 21... Bd6 {[%clk 0:00:49]} 22. Bh4
{[%clk 0:01:35.9]} 22... Rab8 {[%clk 0:00:43.6]} 23. Rb1 {[%clk 0:01:32]} 23...
Qe2 {[%clk 0:00:27.2]} 24. Rxb8 {[%clk 0:00:50.8]} 24... Rxb8 {[%clk 0:00:28.1]}
25. Qxb8+ {[%clk 0:00:50.7]} 25... Bxb8 {[%clk 0:00:29]} 26. Rxb8+ {[%clk
0:00:50.8]} 26... Kg7 {[%clk 0:00:29.9]} 27. Kg2 {[%clk 0:00:51]} 27... Qd3
{[%clk 0:00:08.3]} 28. Ra8 {[%clk 0:00:42.9]} 28... a6 {[%clk 0:00:06.1]} 29.
Bg3 {[%clk 0:00:42.2]} 29... f5 {[%clk 0:00:04.5]} 30. Ra7+ {[%clk 0:00:28.5]}
30... Kh6 {[%clk 0:00:04.8]} 31. h4 {[%clk 0:00:24.7]} 31... fxe4 {[%clk
0:00:03]} 32. Bf4+ {[%clk 0:00:24.9]} 32... g5 {[%clk 0:00:03.7]} 33. Bxg5+
{[%clk 0:00:16]} 33... Kg6 {[%clk 0:00:04.1]} 34. fxe4 {[%clk 0:00:16.4]} 34...
Qxe4+ {[%clk 0:00:04.8]} 35. f3 {[%clk 0:00:16.9]} 35... Qxd5 {[%clk 0:00:03.7]}
36. Rxa6+ {[%clk 0:00:16.8]} 36... Kg7 {[%clk 0:00:04.3]} 37. Ra7+ {[%clk
0:00:17.2]} 37... Kg6 {[%clk 0:00:04.6]} 38. Ra6+ {[%clk 0:00:17.4]} 38... Kf7
{[%clk 0:00:05]} 39. Ra7+ {[%clk 0:00:17.6]} 39... Kg8 {[%clk 0:00:04]} 40. Re7
{[%clk 0:00:15.5]} 40... Qd6 {[%clk 0:00:02.7]} 41. Kf2 {[%clk 0:00:15.5]} 41...
h6 {[%clk 0:00:03]} 42. Re4 {[%clk 0:00:11.9]} 42... hxg5 {[%clk 0:00:02.9]} 43.
hxg5 {[%clk 0:00:12.8]} 43... Qh2+ {[%clk 0:00:03.1]} 44. Ke3 {[%clk 0:00:12.4]}
44... Qg1+ {[%clk 0:00:02.7]} 45. Kf4 {[%clk 0:00:12]} 45... Kf7 {[%clk
0:00:03.4]} 46. Re5 {[%clk 0:00:11.9]} 46... Qh2+ {[%clk 0:00:03.1]} 47. Ke4
{[%clk 0:00:12]} 47... Qe2+ {[%clk 0:00:03.2]} 48. Kf4 {[%clk 0:00:12.2]} 48...
Qh2+ {[%clk 0:00:03.5]} 49. Ke4 {[%clk 0:00:12.4]} 49... Qg3 {[%clk 0:00:03.9]}
50. Rf5+ {[%clk 0:00:12.4]} 50... Kg6 {[%clk 0:00:04.1]} 51. Rf4 {[%clk
0:00:09.6]} 51... Qe1+ {[%clk 0:00:03.5]} 52. Kd3 {[%clk 0:00:09.8]} 52... Kxg5
{[%clk 0:00:03.6]} 53. Rg4+ {[%clk 0:00:10.1]} 53... Kf5 {[%clk 0:00:04.2]} 54.
Re4 {[%clk 0:00:10.3]} 54... Qf2 {[%clk 0:00:04.6]} 55. Re3 {[%clk 0:00:10]}
55... Kf4 {[%clk 0:00:05]} 56. Re4+ {[%clk 0:00:10.5]} 56... Kxf3 {[%clk
0:00:04.9]} 57. Rd4 {[%clk 0:00:11.1]} 57... Qe2+ {[%clk 0:00:04.9]} 58. Kc3
{[%clk 0:00:11.2]} 58... Qe1+ {[%clk 0:00:05.7]} 59. Kc4 {[%clk 0:00:11.2]}
59... Qe8 {[%clk 0:00:06.6]} 60. Kd3 {[%clk 0:00:10.8]} 60... Qb5+ {[%clk
0:00:06.4]} 61. Rc4 {[%clk 0:00:10.9]} 61... Qa6 {[%clk 0:00:06.1]} 62. Kc3
{[%clk 0:00:11.4]} 62... Ke3 {[%clk 0:00:06]} 63. Rd4 {[%clk 0:00:11.7]} 63...
Qa3+ {[%clk 0:00:06.2]} 64. Kc4 {[%clk 0:00:11.3]} 64... Qa4+ {[%clk 0:00:06.8]}
0-1

[Event "Early-Titled-Tuesday-Blitz-February-13-2024"]
[Site "Chess.com"]
[Date "2024.02.13"]
[Round "2"]
[White "Agoking701"]
[Black "sergoy"]
[Result "0-1"]
[WhiteElo "2646"]
[BlackElo "2973"]
[TimeControl "180+1"]
[EndTime "8:20:48 PST"]
[Termination "sergoy won by resignation"]

1. e4 {[%clk 0:03:00.9]} 1... c5 {[%clk 0:03:00.2]} 2. b3 {[%clk 0:03:00.4]}
2... g6 {[%clk 0:02:56.5]} 3. Bb2 {[%clk 0:03:00.7]} 3... Nf6 {[%clk 0:02:57.2]}
4. Nc3 {[%clk 0:03:01.1]} 4... Nc6 {[%clk 0:02:55.9]} 5. Nd5 {[%clk 0:02:49.2]}
5... Bg7 {[%clk 0:02:55.9]} 6. Bc4 {[%clk 0:02:46.6]} 6... O-O {[%clk
0:02:52.7]} 7. Bxf6 {[%clk 0:02:42.5]} 7... exf6 {[%clk 0:02:53.6]} 8. Ne2
{[%clk 0:02:36.2]} 8... Re8 {[%clk 0:02:48.8]} 9. O-O {[%clk 0:02:31.5]} 9...
Rxe4 {[%clk 0:02:43.1]} 10. d4 {[%clk 0:02:17.3]} 10... f5 {[%clk 0:02:37.3]}
11. dxc5 {[%clk 0:02:11.1]} 11... d6 {[%clk 0:02:10.1]} 12. cxd6 {[%clk
0:02:00.9]} 12... Qxd6 {[%clk 0:02:06.2]} 13. Nec3 {[%clk 0:01:56.2]} 13... Re8
{[%clk 0:02:03.7]} 14. Nb5 {[%clk 0:01:52.7]} 14... Qe5 {[%clk 0:01:54.8]} 15.
Nbc7 {[%clk 0:01:48.1]} 15... Be6 {[%clk 0:01:41.2]} 16. Nxa8 {[%clk 0:01:40.6]}
16... Rxa8 {[%clk 0:01:33.2]} 17. c3 {[%clk 0:01:10.3]} 17... Kf8 {[%clk
0:00:53.5]} 18. Re1 {[%clk 0:01:09.3]} 18... Qd6 {[%clk 0:00:53.7]} 19. Ne3
{[%clk 0:00:45.7]} 19... Qxd1 {[%clk 0:00:52.5]} 20. Raxd1 {[%clk 0:00:46.6]}
20... Bxc3 {[%clk 0:00:51]} 21. Re2 {[%clk 0:00:43.8]} 21... Nd4 {[%clk
0:00:49.2]} 22. Kf1 {[%clk 0:00:41.4]} 22... Nxe2 {[%clk 0:00:41]} 23. Kxe2
{[%clk 0:00:42.3]} 23... Bxc4+ {[%clk 0:00:41]} 24. bxc4 {[%clk 0:00:40.1]}
24... Ba5 {[%clk 0:00:34.7]} 25. Rd7 {[%clk 0:00:39.1]} 25... Rd8 {[%clk
0:00:34.2]} 26. Rxb7 {[%clk 0:00:35.6]} 26... Rd2+ {[%clk 0:00:34.5]} 27. Kf3
{[%clk 0:00:36.1]} 27... Bb6 {[%clk 0:00:35.1]} 28. a4 {[%clk 0:00:30.1]} 28...
Ra2 {[%clk 0:00:30.6]} 29. Nd5 {[%clk 0:00:23.4]} 29... Rxf2+ {[%clk 0:00:27.9]}
30. Kg3 {[%clk 0:00:23.9]} 30... Bd4 {[%clk 0:00:28.4]} 31. a5 {[%clk
0:00:13.6]} 31... Ra2 {[%clk 0:00:26.6]} 32. Nb4 {[%clk 0:00:11.2]} 32... Rxa5
{[%clk 0:00:21]} 33. Nc6 {[%clk 0:00:11.8]} 33... Ra3+ {[%clk 0:00:21.3]} 34.
Kf4 {[%clk 0:00:12.5]} 34... Bc5 {[%clk 0:00:17.9]} 35. Ke5 {[%clk 0:00:12.6]}
35... Rd3 {[%clk 0:00:11.4]} 36. Nxa7 {[%clk 0:00:09]} 36... Kg7 {[%clk
0:00:11.8]} 37. Nb5 {[%clk 0:00:08]} 37... Rd2 {[%clk 0:00:10.1]} 38. g3 {[%clk
0:00:06]} 38... Rxh2 {[%clk 0:00:10.1]} 39. Kd5 {[%clk 0:00:05.6]} 39... Bg1
{[%clk 0:00:10.1]} 40. Nd6 {[%clk 0:00:03.6]} 40... Rd2+ {[%clk 0:00:10.4]} 41.
Kc6 {[%clk 0:00:04.2]} 41... h5 {[%clk 0:00:08.1]} 42. Rxf7+ {[%clk 0:00:04.6]}
42... Kh6 {[%clk 0:00:08.5]} 43. Rf8 {[%clk 0:00:04.3]} 43... Kg5 {[%clk
0:00:08.5]} 44. Nf7+ {[%clk 0:00:04.5]} 44... Kg4 {[%clk 0:00:07.9]} 45. Ne5+
{[%clk 0:00:05]} 45... Kxg3 {[%clk 0:00:07.9]} 46. Nxg6 {[%clk 0:00:04.9]} 46...
Rf2 {[%clk 0:00:07.4]} 47. Ne5 {[%clk 0:00:03.7]} 47... h4 {[%clk 0:00:05.3]}
48. Rg8+ {[%clk 0:00:04.3]} 48... Kh2 {[%clk 0:00:05.7]} 49. c5 {[%clk
0:00:03.5]} 49... Rf1 {[%clk 0:00:05.8]} 50. Kd7 {[%clk 0:00:02.9]} 50... Bxc5
{[%clk 0:00:05.7]} 51. Nd3 {[%clk 0:00:03]} 51... Be3 {[%clk 0:00:05.5]} 52. Ne5
{[%clk 0:00:02.3]} 52... h3 {[%clk 0:00:05.5]} 53. Ke6 {[%clk 0:00:02.4]} 53...
Bf4 {[%clk 0:00:04]} 54. Kxf5 {[%clk 0:00:02]} 54... Bg3+ {[%clk 0:00:04.5]} 55.
Ke4 {[%clk 0:00:02]} 55... Re1+ {[%clk 0:00:04.7]} 56. Kf3 {[%clk 0:00:02.9]}
56... Bxe5 {[%clk 0:00:04.9]} 57. Rg1 {[%clk 0:00:01.5]} 57... Rxg1 {[%clk
0:00:03.7]} 0-1